fUST/lending_fUST_20240920
["ID","MTS","AMOUNT","RATE_DAILY","PERIOD"]
[338630361,1726818641343,-500.0,0.00016438,2]
[338630362,1726818641353,-500.0,0.00016438,2]
[338630363,1726818641362,-500.0,0.00016438,2]
[338630364,1726818641371,-500.0,0.00016438,2]
[338630365,1726818641382,-500.0,0.00016438,2]
[338630366,1726818641548,-500.0,0.00016438,2]
[338630367,1726818641558,-500.0,0.00016438,2]
[338630368,1726818641568,-500.0,0.00016438,2]
[338630369,1726818641576,-658.07,0.00016438,2]
[338630370,1726818641586,-500.0,0.00016438,2]
[338630371,1726818641595,-500.0007188,0.00016438,2]
[338630372,1726818641605,-500.0,0.00016438,2]
[338630373,1726818641614,-243.23679135,0.00016438,2]
[338630374,1726818641623,-500.0,0.00016438,2]
[338630375,1726818641633,-606.96,0.00016438,2]
[338630376,1726818641643,-2185.08,0.00016438,2]
[338630377,1726818641653,-500.0,0.00016438,2]
[338630378,1726818641663,-500.0,0.00016438,2]
[338630379,1726818641675,-902.85,0.00016438,2]
[338630380,1726818641684,-500.0,0.00016438,2]
[338630381,1726818641695,-500.0,0.00016438,2]
[338630382,1726818641705,-500.0,0.00016438,2]
[338630383,1726818641714,-500.0,0.00016438,2]
[338630384,1726818641726,-500.0,0.00016438,2]
[338630385,1726818641737,-500.0,0.00016438,2]
[338630386,1726818641746,-500.0,0.00016438,2]
[338630387,1726818641757,-502.64,0.00016438,2]
[338630388,1726818641767,-500.0,0.00016438,2]
[338630389,1726818641779,-3157.53,0.00016438,2]
[338630390,1726818641790,-500.0,0.00016438,2]
[338630391,1726818641799,-760.24,0.00016438,2]
[338630392,1726818641811,-500.0,0.00016438,2]
[338630393,1726818641820,-500.0,0.00016438,2]
[338630394,1726818641831,-1219.66,0.00016438,2]
[338630395,1726818641843,-500.0,0.00016438,2]
[338630396,1726818641854,-500.0,0.00016438,2]
[338630397,1726818641863,-995.89,0.00016438,2]
[338630398,1726818641872,-500.0,0.00016438,2]
[338630399,1726818641882,-500.0,0.00016438,2]
[338630400,1726818641892,-691.95,0.00016438,2]
[338630401,1726818641901,-1166.33,0.00016438,2]
[338630402,1726818641911,-500.0,0.00016438,2]
[338630403,1726818641923,-866.51,0.00016438,2]
[338630404,1726818641933,-1265.85,0.00016438,2]
[338630405,1726818641942,-743.16,0.00016438,2]
[338630406,1726818641951,-500.0,0.00016438,2]
[338630407,1726818641961,-756.87,0.00016438,2]
[338630408,1726818641972,-584.50685942,0.00016438,2]
[338630409,1726818641982,-500.0,0.00016438,2]
[338630410,1726818641992,-500.0,0.00016438,2]
[338630411,1726818642002,-500.0,0.00016438,2]
[338630412,1726818642011,-1177.9,0.00016438,2]
[338630413,1726818642021,-500.0,0.00016438,2]
[338630414,1726818642030,-500.0,0.00016438,2]
[338630415,1726818642039,-500.0,0.00016438,2]
[338630416,1726818642049,-500.0,0.00016438,2]
[338630417,1726818642058,-500.2075416,0.00016438,2]
[338630418,1726818642067,-500.0,0.00016438,2]
[338630419,1726818642077,-500.0,0.00016438,2]
[338630420,1726818642087,-500.0,0.00016438,2]
[338630421,1726818642097,-500.0,0.00016438,2]
[338630422,1726818642106,-784.18,0.00016438,2]
[338630423,1726818642115,-500.0,0.00016438,2]
[338630424,1726818642125,-151.0,0.00016438,2]
[338630425,1726818642135,-151.0,0.00016438,2]
[338630426,1726818642144,-151.0,0.00016438,2]
[338630427,1726818642155,-151.0,0.00016438,2]
[338630428,1726818642165,-500.0,0.00016438,2]
[338630429,1726818642175,-500.0,0.00016438,2]
[338630430,1726818642186,-500.0,0.00016438,2]
[338630431,1726818642197,-500.0,0.00016438,2]
[338630432,1726818642208,-1000.0,0.00016438,2]
[338630433,1726818642218,-500.0,0.00016438,2]
[338630434,1726818642229,-736.36,0.00016438,2]
[338630435,1726818642240,-500.0,0.00016438,2]
[338630436,1726818642250,-500.0,0.00016438,2]
[338630437,1726818642261,-500.0,0.00016438,2]
[338630438,1726818642270,-500.0,0.00016438,2]
[338630439,1726818642279,-500.0,0.00016438,2]
[338630440,1726818642288,-500.0,0.00016438,2]
[338630441,1726818642297,-500.0,0.00016438,2]
[338630442,1726818642306,-816.43,0.00016438,2]
[338630443,1726818642316,-486.39956229,0.00016438,2]
[338630444,1726818642326,-500.0,0.00016438,2]
[338630445,1726818642335,-500.0,0.00016438,2]
[338630446,1726818642348,-500.0,0.00016438,2]
[338630447,1726818642357,-734.6,0.00016438,2]
[338630448,1726818642367,-500.0,0.00016438,2]
[338630449,1726818642376,-500.0,0.00016438,2]
[338630450,1726818642386,-500.0,0.00016438,2]
[338630451,1726818642395,-500.0,0.00016438,2]
[338630452,1726818642404,-274.96901099,0.00016438,2]
[338630453,1726818642414,-500.0,0.00016438,2]
[338630454,1726818642424,-500.0,0.00016438,2]
[338630455,1726818642433,-556.89,0.00016438,2]
[338630456,1726818642444,-500.0,0.00016438,2]
[338630457,1726818642453,-500.0,0.00016438,2]
[338630458,1726818642463,-502.07227781,0.00016438,2]
[338630459,1726818642472,-500.0,0.00016438,2]
[338630460,1726818642481,-500.0,0.00016438,2]
[338630461,1726818642490,-603.76098229,0.00016438,2]
[338630462,1726818642499,-501.68743612,0.00016438,2]
[338630463,1726818642509,-754.4,0.00016438,2]
[338630464,1726818642518,-500.0,0.00016438,2]
[338630465,1726818642527,-500.0,0.00016438,2]
[338630466,1726818642536,-500.0,0.00016438,2]
[338630467,1726818642545,-500.0,0.00016438,2]
[338630468,1726818642554,-644.16,0.00016438,2]
[338630469,1726818642563,-879.54,0.00016438,2]
[338630470,1726818642573,-500.0,0.00016438,2]
[338630471,1726818642582,-1012.9,0.00016438,2]
[338630472,1726818642591,-500.0,0.00016438,2]
[338630473,1726818642601,-500.0,0.00016438,2]
[338630474,1726818642610,-500.0,0.00016438,2]
[338630475,1726818642619,-185.6,0.00016438,2]
[338630476,1726818642630,-505.47665703,0.00016438,2]
[338630477,1726818642642,-500.0,0.00016438,2]
[338630478,1726818642652,-501.00989565,0.00016438,2]
[338630479,1726818642663,-769.89,0.00016438,2]
[338630480,1726818642673,-500.0,0.00016438,2]
[338630481,1726818642683,-1032.39,0.00016438,2]
[338630482,1726818642695,-692.66,0.00016438,2]
[338630483,1726818642705,-500.7574108,0.00016438,2]
[338630484,1726818642715,-500.0,0.00016438,2]
[338630485,1726818642724,-535.08,0.00016438,2]
[338630486,1726818642734,-613.53,0.00016438,2]
[338630487,1726818642743,-500.0,0.00016438,2]
[338630488,1726818642752,-500.0,0.00016438,2]
[338630489,1726818642762,-531.97,0.00016438,2]
[338630490,1726818642771,-500.0,0.00016438,2]
[338630491,1726818642781,-500.0,0.00016438,2]
[338630492,1726818642792,-500.0,0.00016438,2]
[338630493,1726818642804,-151.0,0.00016438,2]
[338630494,1726818642815,-500.0,0.00016438,2]
[338630495,1726818642825,-151.0,0.00016438,2]
[338630496,1726818642835,-151.0,0.00016438,2]
[338630497,1726818642845,-151.0,0.00016438,2]
[338630498,1726818642855,-500.0,0.00016438,2]
[338630499,1726818642864,-500.0,0.00016438,2]
[338630500,1726818642873,-500.28808751,0.00016438,2]
[338630501,1726818642882,-500.0,0.00016438,2]
[338630502,1726818642892,-465.17624906,0.00016438,2]
[338630503,1726818642902,-500.0,0.00016438,2]
[338630504,1726818642912,-798.62,0.00016438,2]
[338630505,1726818642921,-479.92545866,0.00016438,2]
[338630507,1726818642931,-500.0,0.00016438,2]
[338630508,1726818642940,-500.0,0.00016438,2]
[338630509,1726818642950,-500.0,0.00016438,2]
[338630510,1726818642959,-500.0,0.00016438,2]
[338630511,1726818642969,-516.09093097,0.00016438,2]
[338630513,1726818642978,-500.0,0.00016438,2]
[338630515,1726818642988,-588.5,0.00016438,2]
[338630516,1726818642997,-502.93687059,0.00016438,2]
[338630517,1726818643007,-500.0,0.00016438,2]
[338630518,1726818643016,-717.45,0.00016438,2]
[338630519,1726818643026,-210.34,0.00016438,2]
[338630520,1726818643037,-500.0,0.00016438,2]
[338630521,1726818643046,-500.0,0.00016438,2]
[338630522,1726818643056,-500.0,0.00016438,2]
[338630523,1726818643065,-500.0,0.00016438,2]
[338630524,1726818643074,-523.19,0.00016438,2]
[338630525,1726818643083,-500.0,0.00016438,2]
[338630526,1726818643093,-629.84,0.00016438,2]
[338630527,1726818643102,-500.0,0.00016438,2]
[338630529,1726818643112,-500.0,0.00016438,2]
[338630530,1726818643122,-500.0,0.00016438,2]
[338630531,1726818643134,-500.0,0.00016438,2]
[338630533,1726818643144,-500.0,0.00016438,2]
[338630534,1726818643155,-270.62485589,0.00016438,2]
[338630535,1726818643164,-500.0,0.00016438,2]
[338630536,1726818643174,-539.78,0.00016438,2]
[338630537,1726818643183,-500.0,0.00016438,2]
[338630538,1726818643193,-504.48829786,0.00016438,2]
[338630540,1726818643202,-500.0,0.00016438,2]
[338630541,1726818643212,-500.0,0.00016438,2]
[338630542,1726818643222,-500.30099658,0.00016438,2]
[338630543,1726818643231,-500.0,0.00016438,2]
[338630544,1726818643241,-500.0,0.00016438,2]
[338630546,1726818643251,-529.42743458,0.00016438,2]
[338630547,1726818643260,-500.0,0.00016438,2]
[338630548,1726818643269,-500.0,0.00016438,2]
[338630549,1726818643278,-568.2,0.00016438,2]
[338630550,1726818643287,-500.0,0.00016438,2]
[338630551,1726818643296,-151.0,0.00016438,2]
[338630553,1726818643306,-151.0,0.00016438,2]
[338630555,1726818643316,-500.0,0.00016438,2]
[338630557,1726818643326,-151.0,0.00016438,2]
[338630558,1726818643336,-500.0,0.00016438,2]
[338630559,1726818643350,-527.62,0.00016438,2]
[338630560,1726818643359,-151.0,0.00016438,2]
[338630561,1726818643370,-289.693699,0.00016438,2]
[338630562,1726818643383,-500.0,0.00016438,2]
[338630563,1726818643394,-500.0,0.00016438,2]
[338630564,1726818643406,-500.0,0.00016438,2]
[338630565,1726818643419,-500.0,0.00016438,2]
[338630566,1726818643429,-500.0,0.00016438,2]
[338630567,1726818643440,-500.0,0.00016438,2]
[338630568,1726818643451,-500.0,0.00016438,2]
[338630570,1726818643462,-587.46783993,0.00016438,2]
[338630571,1726818643472,-500.0,0.00016438,2]
[338630572,1726818643483,-500.0,0.00016438,2]
[338630573,1726818643493,-500.0,0.00016438,2]
[338630574,1726818643502,-1121.22,0.00016438,2]
[338630575,1726818643511,-500.0,0.00016438,2]
[338630576,1726818643521,-500.0,0.00016438,2]
[338630577,1726818643530,-500.48124968,0.00016438,2]
[338630578,1726818643539,-643.33,0.00016438,2]
[338630579,1726818643549,-500.0,0.00016438,2]
[338630580,1726818643559,-500.0,0.00016438,2]
[338630581,1726818643570,-500.0,0.00016438,2]
[338630582,1726818643581,-500.0,0.00016438,2]
[338630583,1726818643593,-500.0,0.00016438,2]
[338630584,1726818643603,-500.0,0.00016438,2]
[338630585,1726818643614,-500.0,0.00016438,2]
[338630586,1726818643625,-500.0,0.00016438,2]
[338630587,1726818643636,-500.0,0.00016438,2]
[338630588,1726818643647,-500.0,0.00016438,2]
[338630589,1726818643658,-502.54875055,0.00016438,2]
[338630590,1726818643669,-500.0,0.00016438,2]
[338630591,1726818643679,-500.0,0.00016438,2]
[338630592,1726818643691,-485.63,0.00016438,2]
[338630593,1726818643701,-500.0,0.00016438,2]
[338630594,1726818643711,-500.0,0.00016438,2]
[338630595,1726818643721,-151.0,0.00016438,2]
[338630596,1726818643732,-682.95,0.00016438,2]
[338630597,1726818643741,-151.0,0.00016438,2]
[338630598,1726818643751,-151.0,0.00016438,2]
[338630599,1726818643761,-500.0,0.00016438,2]
[338630600,1726818643771,-151.0,0.00016438,2]
[338630601,1726818643782,-500.0,0.00016438,2]
[338630602,1726818643792,-500.0,0.00016438,2]
[338630603,1726818643802,-500.0,0.00016438,2]
[338630604,1726818643812,-500.0,0.00016438,2]
[338630605,1726818643822,-500.0,0.00016438,2]
[338630606,1726818643832,-500.0,0.00016438,2]
[338630607,1726818643842,-500.0,0.00016438,2]
[338630608,1726818643852,-500.0,0.00016438,2]
[338630609,1726818643861,-500.28816432,0.00016438,2]
[338630610,1726818643874,-500.0,0.00016438,2]
[338630611,1726818643884,-507.98,0.00016438,2]
[338630612,1726818643894,-500.0,0.00016438,2]
[338630613,1726818643905,-500.0,0.00016438,2]
[338630614,1726818643915,-500.0,0.00016438,2]
[338630615,1726818643925,-500.0,0.00016438,2]
[338630616,1726818643934,-500.0,0.00016438,2]
[338630617,1726818643944,-265.4551109,0.00016438,2]
[338630618,1726818643953,-500.0,0.00016438,2]
[338630619,1726818643963,-500.0,0.00016438,2]
[338630620,1726818643973,-500.0,0.00016438,2]
[338630621,1726818643982,-500.0,0.00016438,2]
[338630622,1726818643992,-500.0,0.00016438,2]
[338630623,1726818644002,-500.0,0.00016438,2]
[338630624,1726818644011,-500.0,0.00016438,2]
[338630625,1726818644021,-500.0,0.00016438,2]
[338630626,1726818644031,-500.0,0.00016438,2]
[338630627,1726818644041,-500.0,0.00016438,2]
[338630628,1726818644051,-500.0,0.00016438,2]
[338630629,1726818644061,-500.0,0.00016438,2]
[338630630,1726818644070,-500.0,0.00016438,2]
[338630631,1726818644079,-57.2504649,0.00016438,2]
[338630642,1726818646414,-296.37084922,0.00016295,2]
[338630643,1726818646425,-442.7495351,0.00016438,2]
[338630644,1726818646438,-410.1757623,0.00016438,2]
[338630645,1726818646447,-167.820707,0.00016438,2]
[338630646,1726818646457,-167.820707,0.00016438,2]
[338630647,1726818646466,-500.0,0.00016438,2]
[338630648,1726818646475,-167.820707,0.00016438,2]
[338630649,1726818646484,-460.32079427,0.00016438,2]
[338630650,1726818646518,-39.67920573,0.00016438,2]
[338630651,1726818646528,-167.820707,0.00016438,2]
[338630652,1726818646538,-167.820707,0.00016438,2]
[338630653,1726818646547,-162.42202752,0.00016438,2]
[338630654,1726818646557,-167.820707,0.00016438,2]
[338630655,1726818646567,-42.36697114,0.00016438,2]
[338630656,1726818646578,-457.63302886,0.00016438,2]
[338630657,1726818646587,-500.0,0.00016438,2]
[338630658,1726818646598,-513.92715003,0.00016438,2]
[338630659,1726818646608,-500.0,0.00016438,2]
[338630660,1726818646619,-500.0,0.00016438,2]
[338630661,1726818646630,-503.64570474,0.00016438,2]
[338630662,1726818646640,-500.0,0.00016438,2]
[338630663,1726818646650,-500.0,0.00016438,2]
[338630664,1726818646660,-151.0,0.00016438,2]
[338630665,1726818646670,-973.2,0.00016438,2]
[338630666,1726818646679,-564.80453394,0.00016438,2]
[338630667,1726818646699,-445.1659339,0.00016438,2]
[338630668,1726818646716,-100.8240661,0.00016438,2]
[338630669,1726818646727,-500.0,0.00016438,2]
[338630670,1726818646738,-577.71,0.00016438,2]
[338630671,1726818646749,-500.0,0.00016438,2]
[338630672,1726818646759,-500.0,0.00016438,2]
[338630673,1726818646769,-500.0,0.00016438,2]
[338630674,1726818646779,-501.68759347,0.00016438,2]
[338630675,1726818646789,-500.0,0.00016438,2]
[338630676,1726818646798,-500.0,0.00016438,2]
[338630677,1726818646808,-502.41252017,0.00016438,2]
[338630678,1726818646818,-501.06,0.00016438,2]
[338630679,1726818646828,-500.0,0.00016438,2]
[338630680,1726818646838,-701.82,0.00016438,2]
[338630681,1726818646849,-500.0,0.00016438,2]
[338630682,1726818646858,-79.16161442,0.00016438,2]
[338630725,1726819208949,350.0,0.00014013,3]
[338630739,1726819305303,300.0,0.00014013,3]
[338630740,1726819324755,296.97496244,0.00014013,3]
[338630807,1726819838621,-664.42754776,0.00014124,2]
[338630808,1726819838675,-1797.74912444,0.00014124,2]
[338630809,1726819838686,-98.75457643,0.00014162,2]
[338630810,1726819838697,-201.24542357,0.00014162,2]
[338630811,1726819838707,-300.0,0.00014162,2]
[338630812,1726819838717,-250.0,0.00014163,2]
[338630813,1726819838727,-24900.0,0.00014163,2]
[338630814,1726819838736,-250.0,0.00014958,2]
[338630815,1726819838746,-250.0,0.00014999,2]
[338630816,1726819838755,-250.0,0.0001504,2]
[338630817,1726819838764,-250.0,0.00015081,2]
[338630818,1726819838774,-250.0,0.00015122,2]
[338630819,1726819838783,-250.0,0.00015163,2]
[338630821,1726819838793,-250.0,0.00015204,2]
[338630823,1726819838803,-250.0,0.00015245,2]
[338630825,1726819838812,-250.0,0.00015286,2]
[338630827,1726819838821,-250.0,0.00015327,2]
[338630828,1726819838840,-250.0,0.00015368,2]
[338630829,1726819838851,-254.75603261,0.00015398,2]
[338630830,1726819838861,-250.0,0.00015409,2]
[338630831,1726819838871,-250.0,0.0001545,2]
[338630832,1726819838881,-250.0,0.00015491,2]
[338630833,1726819838892,-420.0,0.00015513,2]
[338630834,1726819838902,-250.0,0.00015532,2]
[338630835,1726819838911,-250.0,0.00015573,2]
[338630836,1726819838921,-420.0,0.00015579,2]
[338630837,1726819838931,-250.0,0.00015614,2]
[338630838,1726819838940,-250.0,0.00015655,2]
[338630839,1726819838953,-250.0,0.00015696,2]
[338630840,1726819838963,-250.0,0.00015737,2]
[338630841,1726819838972,-500.0,0.00016,2]
[338630842,1726819838982,-197.58056614,0.00016308,2]
[338630843,1726819838991,-197.58056614,0.0001631,2]
[338630844,1726819839001,-197.58056614,0.00016312,2]
[338630845,1726819839010,-1461.1407043,0.00016315,2]
[338630846,1726819839020,-559.85309891,0.00016328,2]
[338630847,1726819839030,-905.87074054,0.00016338,2]
[338630848,1726819839040,-7139.2745635,0.00016369,2]
[338630849,1726819839050,-350.0,0.000164,3]
[338630850,1726819839059,-400.0,0.000164,3]
[338630851,1726819839069,-3000.0,0.000164,2]
[338630852,1726819839078,-46066.1883545,0.00016408,2]
[338630853,1726819839089,-53563.7743262,0.00016408,2]
[338630854,1726819839098,-3000.0,0.0001641,2]
[338630855,1726819839108,-500.0,0.00016412,2]
[338630856,1726819839118,-718.51949107,0.00016412,2]
[338630857,1726819839127,-500.0,0.00016412,2]
[338630858,1726819839137,-718.51949107,0.00016412,2]
[338630859,1726819839146,-500.0,0.00016412,2]
[338630860,1726819839155,-718.51949107,0.00016412,2]
[338630861,1726819839165,-500.0,0.00016412,2]
[338630862,1726819839174,-500.0,0.00016412,2]
[338630863,1726819839184,-718.51949107,0.00016412,2]
[338630864,1726819839194,-500.0,0.00016412,2]
[338630865,1726819839203,-718.51949107,0.00016412,2]
[338630866,1726819839213,-718.51949107,0.00016412,2]
[338630867,1726819839223,-500.0,0.00016412,2]
[338630868,1726819839234,-718.51949107,0.00016412,2]
[338630869,1726819839243,-500.0,0.00016412,2]
[338630870,1726819839253,-718.51949107,0.00016412,2]
[338630871,1726819839263,-500.0,0.00016412,2]
[338630872,1726819839272,-718.51949107,0.00016412,2]
[338630873,1726819839282,-500.0,0.00016412,2]
[338630874,1726819839291,-718.51949107,0.00016412,2]
[338630875,1726819839301,-500.0,0.00016412,2]
[338630876,1726819839310,-718.51949107,0.00016412,2]
[338630877,1726819839319,-170.46265968,0.00016412,2]
[338630878,1726819839330,-718.51949107,0.00016412,2]
[338630879,1726819839340,-500.0,0.00016412,2]
[338630880,1726819839350,-718.51949107,0.00016412,2]
[338630881,1726819839360,-500.0,0.00016412,2]
[338630882,1726819839369,-718.51949107,0.00016412,2]
[338630883,1726819839378,-500.0,0.00016412,2]
[338630884,1726819839388,-718.51949107,0.00016412,2]
[338630885,1726819839399,-718.51949107,0.00016412,2]
[338630886,1726819839408,-718.51949107,0.00016412,2]
[338630887,1726819839418,-500.0,0.00016412,2]
[338630888,1726819839427,-718.51949107,0.00016412,2]
[338630889,1726819839441,-718.51949107,0.00016412,2]
[338630890,1726819839451,-718.51949107,0.00016412,2]
[338630891,1726819839461,-718.51949107,0.00016412,2]
[338630892,1726819839472,-718.51949107,0.00016412,2]
[338630893,1726819839481,-718.51949107,0.00016412,2]
[338630894,1726819839491,-500.0,0.00016412,2]
[338630895,1726819839501,-718.51949107,0.00016412,2]
[338630896,1726819839510,-718.51949107,0.00016412,2]
[338630897,1726819839520,-718.51949107,0.00016412,2]
[338630898,1726819839535,-718.51949107,0.00016412,2]
[338630899,1726819839545,-718.51949107,0.00016412,2]
[338630900,1726819839555,-718.51949107,0.00016412,2]
[338630901,1726819839565,-718.51949107,0.00016412,2]
[338630902,1726819839574,-718.51949107,0.00016412,2]
[338630903,1726819839584,-718.51949107,0.00016412,2]
[338630904,1726819839594,-718.51949107,0.00016412,2]
[338630905,1726819839603,-718.51949107,0.00016412,2]
[338630906,1726819839613,-500.0,0.00016412,2]
[338630907,1726819839623,-718.51949107,0.00016412,2]
[338630908,1726819839632,-500.0,0.00016412,2]
[338630909,1726819839642,-718.51949107,0.00016412,2]
[338630910,1726819839651,-718.51949107,0.00016412,2]
[338630911,1726819839660,-718.51949107,0.00016412,2]
[338630912,1726819839669,-718.51949107,0.00016412,2]
[338630913,1726819839679,-718.51949107,0.00016412,2]
[338630914,1726819839688,-718.51949107,0.00016412,2]
[338630915,1726819839698,-718.51949107,0.00016412,2]
[338630916,1726819839708,-718.51949107,0.00016412,2]
[338630917,1726819839718,-718.51949107,0.00016412,2]
[338630918,1726819839728,-718.51949107,0.00016412,2]
[338630919,1726819839738,-718.51949107,0.00016412,2]
[338630920,1726819839747,-500.0,0.00016412,2]
[338630921,1726819839757,-718.51949107,0.00016412,2]
[338630922,1726819839767,-718.51949107,0.00016412,2]
[338630923,1726819839777,-718.51949107,0.00016412,2]
[338630924,1726819839786,-718.51949107,0.00016412,2]
[338630925,1726819839796,-718.51949107,0.00016412,2]
[338630926,1726819839806,-718.51949107,0.00016412,2]
[338630927,1726819839816,-718.51949107,0.00016412,2]
[338630928,1726819839826,-718.51949107,0.00016412,2]
[338630929,1726819839836,-718.51949107,0.00016412,2]
[338630930,1726819839845,-718.51949107,0.00016412,2]
[338630931,1726819839855,-718.51949107,0.00016412,2]
[338630932,1726819839865,-718.51949107,0.00016412,2]
[338630933,1726819839874,-718.51949107,0.00016412,2]
[338630934,1726819839883,-718.51949107,0.00016412,2]
[338630935,1726819839897,-718.51949107,0.00016412,2]
[338630936,1726819839907,-718.51949107,0.00016412,2]
[338630937,1726819839917,-718.51949107,0.00016412,2]
[338630938,1726819839927,-718.51949107,0.00016412,2]
[338630939,1726819839937,-718.51949107,0.00016412,2]
[338630940,1726819839948,-718.51949107,0.00016412,2]
[338630941,1726819839962,-718.51949107,0.00016412,2]
[338630942,1726819839972,-718.51949107,0.00016412,2]
[338630943,1726819839982,-2196.56053062,0.00016412,2]
[338630944,1726819839991,-2196.56053062,0.00016412,2]
[338630945,1726819840002,-2196.56053062,0.00016412,2]
[338630946,1726819840011,-2196.56053062,0.00016412,2]
[338630947,1726819840024,-2196.56053062,0.00016412,2]
[338630948,1726819840033,-2196.56053062,0.00016412,2]
[338630950,1726819840043,-2196.56053062,0.00016412,2]
[338630952,1726819840052,-2196.56053062,0.00016412,2]
[338630953,1726819840064,-2196.56053062,0.00016412,2]
[338630954,1726819840073,-2196.56053062,0.00016412,2]
[338630955,1726819840083,-2196.56053062,0.00016412,2]
[338630956,1726819840092,-2196.56053062,0.00016412,2]
[338630957,1726819840102,-2196.56053062,0.00016412,2]
[338630958,1726819840111,-2196.56053062,0.00016412,2]
[338630959,1726819840122,-2196.56053062,0.00016412,2]
[338630960,1726819840131,-2196.56053062,0.00016412,2]
[338630961,1726819840141,-2196.56053062,0.00016412,2]
[338630963,1726819840150,-2196.56053062,0.00016412,2]
[338630964,1726819840159,-2196.56053062,0.00016412,2]
[338630966,1726819840169,-2196.56053062,0.00016412,2]
[338630968,1726819840178,-2196.56053062,0.00016412,2]
[338630969,1726819840187,-2196.56053062,0.00016412,2]
[338630970,1726819840197,-21746.2513614,0.00016413,5]
[338630971,1726819840207,-92132.3767089,0.00016413,2]
[338630972,1726819840216,-107127.548652,0.00016413,2]
[338630973,1726819840227,-500.0,0.00016413,2]
[338630974,1726819840238,-229.55867497,0.00016413,2]
[338630975,1726819840248,-500.0,0.00016413,2]
[338630976,1726819840258,-500.0,0.00016413,2]
[338630977,1726819840267,-500.0,0.00016413,2]
[338630978,1726819840276,-497.27677649,0.00016413,2]
[338630979,1726819840286,-550.34079049,0.00016413,2]
[338630980,1726819840295,-500.0,0.00016413,2]
[338630981,1726819840304,-356.32466406,0.00016413,2]
[338630983,1726819840317,-451.30896057,0.00016413,2]
[338630985,1726819840326,-500.0,0.00016413,2]
[338630986,1726819840336,-500.0,0.00016413,2]
[338630987,1726819840346,-500.0,0.00016413,2]
[338630988,1726819840355,-500.0,0.00016413,2]
[338630990,1726819840365,-500.0,0.00016413,2]
[338630991,1726819840375,-500.0,0.00016413,2]
[338630992,1726819840385,-46066.1883545,0.00016414,2]
[338630993,1726819840395,-24650.16740312,0.00016414,2]
[338630994,1726819840419,-28913.60692308,0.00016414,2]
[338630995,1726819840428,-10395.9425353,0.00016414,2]
[338630998,1726819840740,-81736.4341736,0.00016414,2]
[338630999,1726819840751,-9701.80690603,0.00016414,2]
[338631046,1726819843818,-15.14444086,0.00016308,2]
[338631059,1726819846789,-984.85555914,0.00016308,2]
[338631060,1726819846799,-18015.14444086,0.00016414,2]
[338631061,1726819846811,-632.08,0.00016414,2]
[338631078,1726820341261,2209.38822245,0.000205,120]
[338631162,1726821031742,-299.25945273,0.00014295,2]
[338631164,1726821031754,-0.74054727,0.00014295,2]
[338631165,1726821031765,-300.0,0.00014295,2]
[338631167,1726821031774,-962.1591885,0.00014296,2]
[338631175,1726821037801,-817.69022833,0.00014296,2]
[338631176,1726821037813,-12761.74924267,0.00014296,2]
[338631177,1726821037825,-2119.03510944,0.00014296,2]
[338631178,1726821037910,-8239.36623106,0.00014296,2]
[338631179,1726821037920,-3000.0,0.00014618,2]
[338631180,1726821037929,-250.0,0.00014639,2]
[338631181,1726821037939,-253.7664844,0.00014674,2]
[338631182,1726821037951,-928.1511458,0.00014679,2]